bitfinex/quotes_ETHUSD_20220309
["timestamp","ask_amount","ask_price","bid_price","bid_amount"]
[1646853299074,6.00851023,2697.6,2697.2,1.09518061]
[1646853299473,0.92749,2697.4,2697.2,1.09518061]
[1646853300707,0.3,2697.5,2697.2,2.01403874]
[1646853300708,0.0461202,2697.5,2697.2,2.01403874]
[1646853300903,0.92754,2697.5,2697.2,2.01403874]
[1646853301301,1.22754,2697.5,2697.2,0.91885813]
[1646853301508,0.04600049,2697.4,2697.1,0.86885813]
[1646853301703,0.92756,2697.3,2696.9,1.37001438]
[1646853302104,0.92756,2697.3,2696.9,1.44815833]
[1646853302303,0.92754,2697.5,2697.0,0.07635868]
[1646853302503,0.92754,2697.5,2697.1,1.45563793]
[1646853302708,0.92754,2697.5,2697.1,0.08562355]
[1646853302709,1.85499,2697.5,2697.1,0.08562355]
[1646853303106,1.85499,2697.5,2697.3,0.6890734]
[1646853303508,3.71062,2697.3,2696.7,0.00096]
[1646853303706,1.36873,2697.2,2696.6,0.09440258]
[1646853303904,0.92772,2697.0,2696.6,0.00767031]
[1646853304105,1.85539,2697.0,2696.6,0.00383525]
[1646853304347,0.441,2696.9,2696.6,0.00383525]
[1646853304548,0.441,2696.9,2696.7,0.97953646]
[1646853304849,0.441,2696.9,2696.7,0.94905448]
[1646853305955,1.48633548,2697.3,2696.7,0.94905448]
[1646853306148,1.0,2697.3,2696.8,0.0546035]
[1646853306348,3.71014,2697.4,2697.2,1.04431632]
[1646853306349,1.92753,2697.4,2697.2,1.04431632]
[1646853306550,0.05257441,2697.5,2697.2,1.04431632]
[1646853307150,0.92744,2697.5,2697.2,1.04431632]
[1646853307353,1.8549,2697.5,2697.2,1.04431632]
[1646853308403,0.92752,2697.4,2697.2,1.04431632]
[1646853308605,0.92752,2697.4,2696.7,0.011667]
[1646853309003,1.2777196,2697.1,2696.7,0.011667]
[1646853309201,2.5554392,2697.1,2696.7,0.011667]
[1646853309602,2.5554392,2697.1,2696.9,1.12467552]
[1646853309908,2.5554392,2697.1,2696.7,0.011667]
[1646853311506,2.5554392,2697.1,2696.8,1.2560915]
[1646853311705,4.24131239,2697.6,2697.1,5.5]
[1646853311953,4.24131239,2697.6,2697.3,0.07374649]
[1646853312149,4.24131239,2697.6,2697.4,1.53963524]
[1646853312350,4.23750657,2697.6,2697.5,0.07814564]
[1646853312551,4.24130235,2697.6,2697.5,1.61778088]
[1646853312751,4.24130235,2697.6,2697.5,2.50159382]
[1646853312950,4.24130235,2697.6,2697.5,2.82129382]
[1646853313355,0.83200235,2697.6,2697.5,2.82129382]
[1646853313758,0.011667,2698.4,2697.5,2.82129382]
[1646853313959,1.05468157,2699.0,2697.7,0.3697]
[1646853314156,1.0,2699.2,2697.9,0.4094143]
[1646853314358,0.011667,2699.3,2698.2,0.011813]
[1646853314556,0.011667,2699.3,2698.4,0.3697]
[1646853314757,1.0,2699.7,2698.5,0.011756]
[1646853314958,0.83153718,2699.8,2699.1,1.11367077]
[1646853315154,0.05779936,2699.7,2698.8,0.09368526]
[1646853315354,0.05779936,2699.7,2698.8,0.011905]
[1646853315355,0.72675,2699.6,2698.8,0.011905]
[1646853315612,0.05590408,2699.5,2698.8,0.011905]
[1646853315897,0.00371534,2699.4,2698.8,0.011905]
[1646853316099,0.06456596,2699.4,2698.8,0.011905]
[1646853316302,0.06456596,2699.4,2698.5,0.011756]
[1646853316303,0.01456596,2699.4,2698.5,0.011756]
[1646853316500,0.92695,2699.1,2698.5,0.011756]
[1646853316711,0.927,2698.9,2698.5,0.011756]
[1646853317109,3.54793166,2698.8,2698.2,0.011813]
[1646853317303,0.04793166,2698.8,2698.2,0.011813]
[1646853317505,0.04309294,2698.7,2698.2,0.011813]
[1646853317904,0.04309294,2698.7,2698.2,1.19516389]
[1646853318704,1.22712,2698.8,2698.2,1.19516389]
[1646853319105,0.92709,2698.7,2698.2,1.19516389]
[1646853319550,1.85416,2698.7,2698.2,0.011813]
[1646853319749,1.90472985,2698.7,2698.2,0.011813]
[1646853320156,1.90472985,2698.7,2698.0,0.011667]
[1646853320157,0.92724,2698.5,2698.0,0.011667]
[1646853320354,1.90497667,2698.3,2697.7,0.011667]
[1646853320552,0.48775401,2698.2,2697.7,0.011667]
[1646853320755,0.04763045,2698.1,2697.7,0.011667]
[1646853321157,0.48863045,2698.1,2697.7,0.011667]
[1646853321355,0.441,2698.1,2697.7,0.011667]
[1646853321559,2.29554,2698.1,2697.7,0.011667]
[1646853321960,0.04534808,2698.0,2697.7,0.011667]
[1646853322158,0.441,2697.9,2697.7,0.011667]
[1646853322358,0.97564721,2697.8,2697.4,0.011667]
[1646853322557,0.48795746,2697.7,2697.2,1.157069]
[1646853322758,1.85496,2697.6,2697.3,1.53983219]
[1646853322964,5.13590057,2697.5,2697.2,0.011669]
[1646853323208,5.13590057,2697.5,2696.9,0.011667]
[1646853323209,1.90119835,2697.4,2696.9,0.011667]
[1646853323407,0.48396469,2697.3,2697.0,1.53997069]
[1646853323607,1.441,2697.3,2697.0,0.08911159]
[1646853323807,1.441,2697.3,2696.9,0.011667]
[1646853323808,0.441,2697.3,2696.9,0.011667]
[1646853324004,2.15536,2697.4,2696.9,0.011667]
[1646853324215,2.05434942,2697.9,2696.9,0.011667]
[1646853324216,0.24142955,2698.1,2697.4,1.64244252]
[1646853324404,0.9272,2698.2,2697.5,0.01172]
[1646853324611,0.04997514,2698.4,2697.5,0.09386304]
[1646853324807,0.00346346,2698.5,2697.7,0.011811]
[1646853325006,0.00346346,2698.5,2697.9,0.011833]
[1646853325305,1.85445,2698.1,2697.9,0.011833]
[1646853325505,1.85445,2698.1,2697.9,0.95998818]
[1646853325705,3.7089,2698.1,2697.9,0.95998818]
[1646853326004,1.8544,2698.2,2697.9,0.95998818]
[1646853327051,1.8544,2698.2,2698.0,0.07009094]
[1646853327451,0.92721,2698.2,2698.0,0.07009094]
[1646853327652,0.3,2698.3,2698.0,0.07009094]
[1646853327850,0.3,2698.3,2697.9,0.95998818]
[1646853328052,0.30346346,2698.5,2698.0,0.08192206]
[1646853328254,0.00346346,2698.5,2698.0,0.08192206]
[1646853328650,0.00346346,2698.5,2698.4,1.17356112]
[1646853329251,0.00346346,2698.5,2698.1,0.011667]
[1646853330153,0.00346346,2698.5,2698.4,0.00108981]
[1646853331309,0.00346346,2698.5,2698.4,0.07956672]
[1646853331503,0.00346346,2698.5,2698.4,0.02956672]
[1646853332303,1.85750346,2698.5,2698.3,1.20302916]
[1646853332705,2.15750346,2698.5,2698.1,0.07896463]
[1646853333003,4.01158346,2698.5,2698.1,0.011667]
[1646853333604,4.01158346,2698.5,2698.1,0.98755608]
[1646853333904,0.92691,2698.4,2698.1,0.98755608]
[1646853334352,0.92691,2698.4,2698.1,0.011667]
[1646853334554,0.92697,2698.3,2698.1,0.011667]
[1646853334758,0.92697,2698.3,2697.9,0.011833]
[1646853334957,0.92697,2698.3,2697.7,0.011811]
[1646853335559,0.92697,2698.3,2697.7,1.0317605]
[1646853335959,2.78154,2698.2,2697.7,1.0317605]
[1646853336259,0.92719,2698.1,2697.4,1.8430839]
[1646853336463,0.98973291,2697.9,2697.4,1.8430839]
[1646853336761,1.52726,2697.9,2697.4,1.6577839]
[1646853336961,1.91143962,2697.8,2697.4,1.6577839]
[1646853337160,0.05444055,2697.7,2697.4,1.6577839]
[1646853337364,0.05444055,2697.7,2697.4,1.64244252]
[1646853337365,0.98172055,2697.7,2697.4,1.64244252]
[1646853337563,1.90896055,2697.7,2697.4,1.64244252]
[1646853337762,0.05490496,2697.6,2697.4,1.64244252]
[1646853338208,1.22728,2697.7,2697.4,1.64244252]
[1646853338607,2.15448,2697.7,2697.4,1.64244252]
[1646853339613,3.56636758,2697.6,2697.4,1.64244252]
[1646853339811,0.06636758,2697.6,2697.4,1.64244252]
[1646853340015,0.06636758,2697.6,2697.0,0.01533999]
[1646853340216,0.05366434,2697.4,2697.0,0.01533999]
[1646853340409,0.98115434,2697.4,2697.0,0.01533999]
[1646853340611,0.0605874,2697.3,2697.0,0.01533999]
[1646853340810,0.0605874,2697.3,2696.6,0.006794]
[1646853341011,4.72749,2697.4,2696.4,0.18616]
[1646853341013,0.05442978,2697.1,2696.4,0.18616]
[1646853341215,0.06011802,2696.8,2696.4,0.1852]
[1646853341411,0.05469703,2696.6,2696.4,0.1852]
[1646853342248,1.90989703,2696.6,2696.4,1.33435206]
[1646853343050,1.90989703,2696.6,2696.4,0.1852]
[1646853343259,5.6552,2696.6,2696.3,0.011667]
[1646853343457,5.6552,2696.6,2696.0,0.07092965]
[1646853343458,0.05699053,2696.3,2696.0,0.07092965]
[1646853343755,0.92782,2696.3,2696.1,1.54052702]
[1646853343955,0.92782,2696.3,2696.1,2.7676076]
[1646853344156,0.92782,2696.3,2696.2,1.54052702]
[1646853344354,0.3,2696.4,2696.2,1.54052702]
[1646853344755,0.92754,2696.5,2696.2,1.54052702]
[1646853346396,1.22754,2696.5,2696.2,1.54052702]
[1646853347200,1.22754,2696.5,2696.3,1.54052702]
[1646853347400,1.22754,2696.5,2696.4,1.54052702]
[1646853347602,1.22754,2696.5,2696.0,1.54052702]
[1646853347804,1.22754,2696.5,2696.1,1.54052702]
[1646853348000,1.22754,2696.5,2696.2,1.54052702]
[1646853348201,1.22754,2696.5,2696.3,1.54052702]
[1646853348401,1.22754,2696.5,2696.4,1.54052702]
[1646853348902,1.22754,2696.5,2696.1,1.54052702]
[1646853349102,3.08316,2696.5,2696.2,1.54052702]
[1646853349354,3.08316,2696.5,2696.3,1.54052702]
[1646853349552,3.08316,2696.5,2695.9,0.5640783]
[1646853349553,3.08316,2696.5,2696.4,1.54052702]
[1646853349753,3.08316,2696.5,2696.0,1.54052702]
[1646853349967,3.08316,2696.5,2696.1,1.54059844]
[1646853350157,3.08316,2696.5,2695.9,0.62890354]
[1646853350158,0.92801,2696.1,2695.9,0.62890354]
[1646853350462,1.36901,2696.1,2696.0,1.54072957]
[1646853350658,1.36901,2696.1,2695.9,0.5640783]
[1646853351765,0.441,2696.1,2695.9,0.5640783]
[1646853353201,0.441,2696.1,2695.9,0.56811913]
[1646853353598,1.3688,2696.1,2696.0,1.54074257]
[1646853355501,1.3688,2696.1,2695.9,0.56811918]
[1646853355704,1.3688,2696.1,2695.9,0.00404088]
[1646853355705,3.5,2696.0,2695.9,0.00404088]
[1646853355903,4.0,2695.8,2695.5,0.01490888]
[1646853356104,0.92812,2695.7,2695.6,1.54088972]
[1646853356301,0.92812,2695.7,2695.6,1.55291872]
[1646853356501,0.92812,2695.7,2695.5,0.02981776]
[1646853356502,1.22812,2695.7,2695.5,0.02981776]
[1646853356700,1.22812,2695.7,2695.5,0.04150376]
[1646853357145,1.22812,2695.7,2695.5,0.02981776]
[1646853357346,1.52812,2695.7,2695.5,0.02981776]
[1646853357946,1.22812,2695.7,2695.6,0.011777]
[1646853358150,1.22812,2695.7,2695.5,0.02981776]
[1646853358752,1.22812,2695.7,2695.5,0.10864714]
[1646853360356,1.23207587,2695.7,2695.5,0.10864714]
[1646853360609,1.23207587,2695.7,2695.4,0.00363136]
[1646853360610,0.92812,2695.5,2695.4,0.00363136]
[1646853361006,1.85626,2695.5,2695.4,0.00726272]
[1646853361402,0.92814,2695.5,2695.4,0.00726272]
[1646853361605,0.92814,2695.5,2695.4,1.54828771]
[1646853361903,0.92814,2695.5,2695.4,0.00726272]
[1646853364347,0.92811,2695.5,2695.4,0.00726272]
[1646853364746,2.07265785,2695.6,2695.4,0.00726272]
[1646853364747,2.37265785,2695.6,2695.4,0.00726272]
[1646853364946,0.06643138,2695.5,2695.4,0.00726272]
[1646853365747,0.06643138,2695.5,2695.4,1.54826318]
[1646853365949,0.99457138,2695.5,2695.4,1.54826318]
[1646853366151,0.99457138,2695.5,2695.4,1.49663307]
[1646853366152,0.92814,2695.5,2695.4,1.49663307]
[1646853366349,0.92814,2695.5,2695.4,1.51115851]
[1646853368899,0.92814,2695.5,2695.4,0.01452544]
[1646853370302,0.00382837,2695.6,2695.5,0.3697]
[1646853370502,0.00382837,2695.6,2695.5,15.20108519]
[1646853370703,0.00382837,2695.6,2695.5,16.41058519]
[1646853370901,0.92772,2696.4,2695.5,18.90536296]
[1646853371103,1.85515,2696.5,2695.6,0.0603176]
[1646853371307,0.00382836,2695.7,2695.6,0.0603176]
[1646853371706,0.00382836,2695.7,2695.6,3.5603176]
[1646853371993,0.00382836,2695.7,2695.6,15.1900176]
[1646853372289,0.0038275,2695.8,2695.7,0.06617053]
[1646853372489,0.0038275,2695.8,2695.7,15.19587053]
[1646853372891,2.05897836,2696.5,2695.9,0.3697]
[1646853373195,0.92751,2696.4,2696.1,0.06963958]
[1646853373402,0.05278967,2697.1,2696.1,0.06963958]
[1646853373597,0.05728627,2697.3,2696.1,0.06963958]
[1646853373794,0.05728627,2697.3,2696.1,0.07059958]
[1646853374006,2.78266,2697.4,2696.1,0.07059958]
[1646853374398,1.85479,2696.8,2696.2,3.0]
[1646853374594,0.92743,2697.1,2696.7,1.52916252]
[1646853374795,0.92743,2697.1,2696.7,1.2288962]
[1646853374995,0.00261447,2696.9,2696.7,1.15946252]
[1646853375797,0.92743,2697.1,2696.7,1.15946252]
[1646853376000,0.0040406,2696.9,2696.7,1.15946252]
[1646853376607,0.0040406,2696.9,2696.2,0.00096]
[1646853376803,0.0040406,2696.9,2696.2,0.06901169]
[1646853377005,1.29042188,2697.0,2696.2,0.06901169]
[1646853377204,1.29042188,2697.0,2696.0,1.24606]
[1646853377205,0.0040406,2696.9,2696.0,1.24606]
[1646853377403,0.92764,2696.6,2696.0,1.2451]
[1646853378004,0.92765,2696.5,2696.2,1.22763752]
[1646853378404,1.85933086,2696.4,2696.0,1.3126949]
[1646853378606,1.85933086,2696.4,2695.8,1.22445499]
[1646853378804,0.06148003,2696.2,2695.8,1.22445499]
[1646853379651,0.00404102,2696.1,2695.9,0.93660044]
[1646853379849,0.99176667,2696.1,2695.9,0.93660044]
[1646853380050,0.99176667,2696.1,2695.8,0.00765499]
[1646853380250,1.91961667,2696.1,2695.8,0.00765499]
[1646853380451,0.93189102,2696.1,2695.8,0.00765499]
[1646853380650,0.92785,2696.1,2695.8,0.00765499]
[1646853380849,0.93176981,2696.1,2695.8,0.00765499]
[1646853381450,0.93176981,2696.1,2695.8,1.14703427]
[1646853381650,0.92785,2696.1,2695.8,1.14703427]
[1646853382053,0.93176981,2696.1,2695.8,1.14703427]
[1646853382252,0.93176981,2696.1,2695.8,0.00765499]
[1646853382453,0.05413675,2696.0,2695.8,0.00765499]
[1646853382652,0.05413675,2696.0,2695.4,1.19854622]
[1646853382653,3.0,2695.9,2695.4,1.19854622]
[1646853382855,1.91265468,2695.8,2695.4,0.01844622]
[1646853383115,0.05193441,2695.7,2695.4,0.01452544]
[1646853383908,1.90797441,2695.7,2695.4,0.01452544]
[1646853384105,0.0640727,2695.6,2695.4,0.01452544]
[1646853384408,0.05910316,2695.5,2695.4,0.01834696]
[1646853385204,0.05910316,2695.5,2695.4,0.01452544]
[1646853386608,0.05910316,2695.5,2695.4,1.55577635]
[1646853387455,1.85634,2695.3,2695.2,0.03358528]
[1646853387657,5.42049692,2695.3,2695.2,0.03358528]
[1646853387856,8.02556,2695.3,2695.2,0.03358528]
[1646853388055,3.5,2695.2,2694.8,0.01530766]
[1646853388258,4.8,2695.2,2694.8,0.01530766]
[1646853388557,4.8,2695.2,2694.8,0.04950884]
[1646853388558,3.0,2695.1,2694.8,0.04950884]
[1646853388757,2.78503,2695.0,2694.8,0.04950884]
[1646853389158,5.28503,2695.0,2694.2,2.7788735]
[1646853389358,5.58503,2695.0,2694.2,2.7779135]
[1646853389565,5.58503,2695.0,2694.4,1.02388633]
[1646853389759,3.08503,2695.0,2694.4,1.02388633]
[1646853390160,1.85669,2694.9,2694.4,1.02388633]
[1646853390359,0.00266899,2694.8,2694.4,1.02388633]
[1646853391001,2.78481,2694.7,2694.4,1.02388633]
[1646853391606,2.78481,2694.7,2694.5,0.00403832]
[1646853391802,2.78481,2694.7,2694.4,1.02388633]
[1646853392804,2.78481,2694.7,2694.3,0.07263406]
[1646853394006,8.28481,2694.7,2694.2,0.05069028]
[1646853394202,0.92855,2694.6,2694.2,0.05069028]
[1646853394450,0.92847,2694.5,2694.0,1.17172769]
[1646853394649,2.78537,2694.4,2694.0,1.17172769]
[1646853394855,3.08537,2694.4,2694.0,1.23928525]
[1646853395449,4.94227,2694.4,2694.0,1.23928525]
[1646853395656,0.92849,2694.3,2694.0,1.23928525]
[1646853396253,1.85692,2694.3,2694.0,1.17955668]
[1646853396451,1.85692,2694.3,2694.0,1.0835962]
[1646853396652,2.15692,2694.3,2694.0,1.0835962]
[1646853397358,2.15692,2694.3,2694.0,1.07955668]
[1646853397553,1.85692,2694.3,2694.0,1.0835962]
[1646853397758,2.15692,2694.3,2694.0,1.0835962]
[1646853397977,5.59051795,2694.1,2692.7,0.14738273]
[1646853398232,5.59051795,2694.1,2692.4,0.05407742]
[1646853398233,5.59051795,2694.1,2692.2,6.30576653]
[1646853398234,0.92917,2692.9,2692.2,6.30576653]
[1646853398419,0.92917,2692.9,2691.9,0.10551237]
[1646853398420,0.00068103,2692.3,2691.9,0.10551237]
[1646853398620,0.00068103,2692.3,2691.7,0.02564206]
[1646853398621,5.52430592,2692.0,2691.7,0.02564206]
[1646853398817,5.52430592,2692.0,2691.5,0.08297924]
[1646853398818,0.07778566,2691.8,2691.5,0.08297924]
[1646853399019,0.07778566,2691.8,2691.0,2.34915645]
[1646853399020,0.02778566,2691.8,2689.2,11.26]
[1646853399320,0.02778566,2691.8,2690.9,0.00096]
[1646853399321,0.07183911,2691.0,2690.9,0.00096]
[1646853399516,0.07183911,2691.0,2689.9,1.3690579]
[1646853399517,0.08052157,2690.8,2689.9,0.68451715]
[1646853399715,0.08052157,2690.8,2690.0,0.68547715]
[1646853399716,0.016978,2690.6,2690.0,0.68547715]
[1646853399919,0.441,2690.5,2690.0,0.04149491]
[1646853400117,0.08052157,2690.8,2690.5,0.88199999]
[1646853400315,0.92966,2690.6,2690.5,0.88199999]
[1646853400517,0.92966,2690.6,2690.1,0.04147328]
[1646853400518,0.07682996,2690.5,2690.1,0.04147328]
[1646853400718,1.37071,2690.6,2690.1,0.72368948]
[1646853400719,0.92971,2690.6,2690.1,0.72368948]
[1646853400916,0.3,2690.8,2690.3,0.12791213]
[1646853401117,0.3,2690.8,2690.4,1.15431933]
[1646853401317,2.87208787,2691.3,2690.5,3.5]
[1646853401718,2.78892,2690.9,2690.4,1.15431933]
[1646853401948,2.78892,2690.9,2690.4,1.23732501]
[1646853402150,2.78892,2690.9,2690.4,1.24525941]
[1646853402454,2.78892,2690.9,2690.5,0.00135006]
[1646853403050,2.78892,2690.9,2690.5,0.30692722]
[1646853403051,0.07463708,2690.7,2690.5,0.30692722]
[1646853403452,0.07463708,2690.7,2690.5,0.30557716]
[1646853403653,0.07463708,2690.7,2690.5,0.2834646]
[1646853403853,0.07463708,2690.7,2690.6,0.00135003]
[1646853404054,0.07463708,2690.7,2690.6,0.20692719]
[1646853404354,0.06515941,2690.7,2690.6,0.20692719]
[1646853404553,2.93724728,2690.7,2690.6,0.20692719]
[1646853404960,2.93724728,2690.7,2690.6,0.12816504]
[1646853405156,2.93724728,2690.7,2690.6,0.17030984]
[1646853405356,5.5,2690.6,2690.2,0.04035806]
[1646853405630,5.5,2690.6,2690.5,0.05427664]
[1646853405810,2.93724728,2690.7,2690.5,0.05427664]
[1646853406110,1.85939,2690.4,2690.3,0.00130549]
[1646853406314,8.23147787,2690.4,2690.3,0.05147589]
[1646853406511,8.23147787,2690.4,2690.3,0.0329344]
[1646853406512,8.67247787,2690.4,2690.3,0.0329344]
[1646853406713,8.67247787,2690.4,2690.0,0.05316191]
[1646853406714,5.17247787,2690.4,2690.0,0.05316191]
[1646853406911,2.87208787,2690.3,2690.0,0.05316191]
[1646853407110,1.3708,2690.3,2690.1,0.04092649]
[1646853407310,1.3708,2690.3,2690.1,0.05259649]
[1646853407514,3.5,2690.2,2690.1,0.04092649]
[1646853407714,2.87208787,2690.2,2690.0,0.011667]
[1646853407911,1.3708,2690.3,2690.0,0.011667]
[1646853408115,1.6708,2690.3,2690.0,0.011667]
[1646853408315,1.3708,2690.3,2690.0,0.023335]
[1646853409119,1.3708,2690.3,2690.0,0.011667]
[1646853409363,1.3708,2690.3,2689.7,0.05281492]
[1646853409364,5.5,2690.0,2689.7,0.03924088]
[1646853409569,5.5,2690.0,2689.0,0.005834]
[1646853409570,5.67509235,2689.8,2689.0,0.005834]
[1646853409766,2.87208787,2689.6,2688.9,0.0356487]
[1646853409959,3.31308787,2689.6,2688.9,0.0356487]
[1646853410166,3.31308787,2689.6,2689.0,0.04717915]
[1646853410558,1.86013,2689.5,2689.0,0.04717915]
[1646853410761,1.86013,2689.5,2689.2,0.0040899]
[1646853410762,4.02014,2689.5,2689.2,0.0040899]
[1646853411160,0.7251034,2689.5,2689.3,0.04547387]
[1646853411567,9.09719127,2689.5,2689.2,0.0040899]
[1646853411761,8.5262334,2689.5,2688.9,0.0356487]
[1646853411965,0.93021,2689.1,2689.0,1.22749828]
[1646853412563,0.93021,2689.1,2688.9,0.0356487]
[1646853412564,2.01351,2689.1,2688.9,0.0356487]
[1646853412766,3.87391,2689.1,2688.9,0.0356487]
[1646853414230,3.87391,2689.1,2688.8,0.02619442]
[1646853414231,2.9437,2689.1,2688.8,0.01184312]
[1646853414431,1.0833,2689.1,2688.8,0.01184312]
[1646853414631,0.93015,2689.2,2688.8,0.01184312]
[1646853414831,0.93015,2689.2,2689.1,0.88156599]
[1646853415033,3.72088,2689.3,2689.1,0.87156599]
[1646853415034,2.17959224,2689.3,2689.1,0.87156599]
[1646853415232,2.87208787,2689.6,2689.1,0.87156599]
[1646853415534,0.92995,2689.8,2689.1,0.87156599]
[1646853415535,1.86005,2689.7,2689.1,0.87156599]
[1646853415832,1.86005,2689.7,2689.0,0.00408806]
[1646853415833,2.87208787,2689.3,2689.0,0.00408806]
[1646853416133,2.87208787,2689.3,2688.8,0.01184312]
[1646853416134,2.87208787,2689.1,2688.8,0.01184312]
[1646853416334,2.87208787,2688.9,2688.8,0.05238884]
[1646853416531,5.66349787,2688.9,2688.8,0.05238884]
[1646853416952,6.59386417,2688.9,2688.8,0.05238884]
[1646853417358,5.5124,2688.8,2688.7,0.02220448]
[1646853417557,0.02215344,2688.7,2688.6,0.03798356]
[1646853417760,5.00615344,2688.7,2688.6,5.068e-05]
[1646853417962,3.72326,2688.5,2687.5,0.06387698]
[1646853418161,2.87208787,2688.0,2687.5,0.06387698]
[1646853418359,0.441,2687.9,2687.5,0.06291698]
[1646853418559,0.441,2687.9,2687.6,0.06492294]
[1646853419159,3.31308787,2687.9,2687.6,0.06492294]
[1646853419359,6.26667657,2687.9,2687.6,0.06492294]
[1646853419562,2.79233,2687.8,2687.6,0.06492294]
[1646853420360,2.79233,2687.8,2687.6,0.06901473]
[1646853421005,0.93079,2687.9,2687.8,1.43925369]
[1646853421204,1.8616,2688.1,2687.9,0.11069999]
[1646853421803,3.72266,2688.1,2688.0,1.06214822]
[1646853422003,3.72266,2688.1,2687.9,0.11069999]
[1646853422004,4.6531,2688.1,2687.9,0.11069999]
[1646853422205,4.6531,2688.1,2687.9,0.09511923]
[1646853422506,4.6531,2688.1,2687.9,0.03441924]
[1646853422904,4.5,2688.0,2687.8,1.3285537]
[1646853423104,4.6531,2688.1,2687.8,1.3285537]
[1646853423312,5.5,2687.8,2686.7,9.93872758]
[1646853423507,0.93078,2687.8,2686.7,9.93872758]
[1646853423707,0.93072,2687.7,2686.7,9.93872758]
[1646853423908,0.93072,2687.7,2687.3,3.63405574]
[1646853424108,0.93072,2687.7,2687.4,0.186]
[1646853424366,5.5,2687.6,2687.3,3.63405574]
[1646853424555,0.93079,2687.5,2687.3,3.63405574]
[1646853425053,1.8616,2687.5,2687.3,0.00782412]
[1646853425253,1.8616,2687.5,2687.3,0.01166513]
[1646853425454,1.8616,2687.5,2687.3,0.01564824]
[1646853426153,1.8616,2687.5,2687.2,0.98247581]
[1646853426352,1.8616,2687.5,2687.3,0.03129648]
[1646853427354,1.9186587,2687.5,2687.3,0.03129648]
[1646853427754,0.0693283,2687.4,2687.3,0.03129648]
[1646853428420,1.8616,2687.5,2687.3,0.03129648]
[1646853429622,5.55794838,2687.4,2687.2,0.0484979]
[1646853429823,6.44557169,2687.3,2687.2,9.79e-05]
[1646853430026,6.44557169,2687.3,2687.2,0.00392945]
[1646853430027,6.88657169,2687.3,2687.2,0.00392945]
[1646853430222,6.88657169,2687.3,2686.7,0.08320376]
[1646853430223,5.5,2687.2,2686.7,0.08320376]
[1646853430423,1.86186,2687.0,2686.7,0.08320376]
[1646853430823,1.23098,2687.1,2686.9,1.21813756]
[1646853431024,0.3,2687.1,2686.9,1.21813756]
[1646853431227,3.09292,2687.4,2687.3,0.53665427]
[1646853432660,2.79292,2687.4,2687.3,0.53665427]
[1646853432858,0.93068,2687.5,2687.3,0.48665427]
[1646853433664,0.93068,2687.5,2686.9,1.22716803]
[1646853433665,0.93366815,2687.5,2686.9,1.22716803]
[1646853434465,0.93068,2687.5,2686.9,1.22716803]
[1646853434665,0.93066,2687.4,2686.9,1.22716803]
[1646853434865,2.79204,2687.3,2686.9,1.22716803]
[1646853435268,0.93065,2687.2,2686.9,1.22716803]
[1646853435910,0.93078,2687.1,2686.9,1.22716803]
[1646853436512,0.93065,2687.2,2686.9,1.22716803]
[1646853436707,1.23065,2687.2,2686.9,0.0223762]
[1646853436910,3.14273835,2687.2,2686.9,0.0223762]
[1646853437308,2.87208787,2687.1,2686.9,7.62e-05]
[1646853437509,0.04933894,2687.0,2686.9,7.62e-05]
[1646853437909,1.91142894,2687.0,2686.9,7.62e-05]
[1646853438109,0.0485793,2686.9,2686.7,5.516e-05]
[1646853438312,0.0485793,2686.9,2686.3,0.01322654]
[1646853438313,5.54628318,2686.7,2686.3,0.01226654]
[1646853438514,5.54628318,2686.7,2685.4,0.08197064]
[1646853438515,8.37208787,2686.4,2685.4,0.08197064]
[1646853438711,0.49859686,2686.3,2685.7,1.54662323]
[1646853438913,2.87208787,2685.8,2685.6,0.0255824]
[1646853439115,6.4316023,2685.7,2685.3,0.00529744]
[1646853439379,6.4316023,2685.7,2684.8,0.33876012]
[1646853439380,5.5,2685.2,2684.8,0.33876012]
[1646853439575,5.5,2685.2,2684.5,0.04517984]
[1646853439576,0.06280512,2684.8,2684.5,0.04517984]
[1646853439777,0.06280512,2684.8,2684.6,1.54714237]
[1646853439778,0.50380512,2684.8,2684.6,1.54714237]
[1646853439981,0.50380512,2684.8,2684.3,0.08425976]
[1646853439982,5.6393,2684.6,2684.3,0.08425976]
[1646853440188,5.6393,2684.6,2683.9,0.0118658]
[1646853440189,0.93217,2684.1,2683.9,0.0118658]
[1646853440398,5.5,2684.2,2684.1,0.93577038]
[1646853440399,1.86425,2684.2,2684.1,0.93577038]
[1646853440584,1.2208,2684.6,2684.1,0.93577038]
[1646853440585,0.3,2684.6,2684.1,0.93577038]
[1646853440784,3.87208787,2685.0,2684.1,0.93577038]
[1646853440982,3.5,2684.9,2684.1,0.93577038]
[1646853441183,0.3,2685.0,2684.1,0.93577038]
[1646853441387,3.5,2685.0,2684.9,0.42856364]
[1646853441588,0.13819997,2685.0,2684.9,0.42856364]
[1646853441801,16.76,2684.9,2684.2,0.00096]
[1646853441981,0.23735341,2684.8,2684.1,0.88577038]
[1646853442282,4.406367,2685.3,2684.1,0.88577038]
[1646853442283,2.81560308,2685.3,2684.1,0.88577038]
[1646853442482,2.81560308,2685.3,2684.1,0.96151194]
[1646853442483,1.81560308,2685.3,2684.1,0.96151194]
[1646853443117,1.81560308,2685.3,2684.7,1.03574293]
[1646853443510,1.81560308,2685.3,2684.7,1.23393717]
[1646853443710,5.14775944,2685.8,2684.8,3.5]
[1646853443711,3.23585,2685.8,2684.8,3.5]
[1646853443917,2.79485,2685.8,2684.9,0.00662879]
[1646853444314,2.79485,2685.8,2685.0,0.3697]
[1646853444514,1.14481083,2685.8,2685.2,0.00266505]
[1646853444913,0.93135,2685.9,2685.2,0.00266505]
[1646853445117,0.00384012,2686.0,2685.9,1.54350008]
[1646853445313,0.00384012,2686.0,2685.9,1.49350008]
[1646853445516,1.86255,2686.2,2685.9,1.50854492]
[1646853445916,0.00384072,2686.1,2686.0,3.5]
[1646853446317,0.00384072,2686.1,2686.0,3.8697]
[1646853446517,0.00384072,2686.1,2686.0,0.01504484]
[1646853446724,3.0,2686.6,2686.0,0.01504484]
[1646853446970,0.9350307,2686.2,2686.0,0.01504484]
[1646853447569,1.3760307,2686.2,2686.0,0.01504484]
[1646853447768,5.5,2686.1,2685.9,1.4886346]
[1646853447969,5.941,2686.1,2685.9,1.4886346]
[1646853448168,0.441,2686.1,2685.9,1.4886346]
[1646853448972,0.441,2686.1,2684.8,0.04869384]
[1646853448973,16.80993668,2685.9,2684.8,0.04869384]
[1646853449174,16.80993668,2685.9,2684.9,0.04237952]